[Event "EYCC Girls U16 2021"]
[Site "Tornelo"]
[Date "2021.10.15"]
[Round "2.11"]
[White "Dereka, Konstantina"]
[Black "Bashylina, Luisa"]
[Result "0-1"]
[ECO "D87"]
[WhiteElo "1479"]
[BlackElo "2127"]
[Annotator "NA"]
[PlyCount "126"]
[EventDate "2021.10.15"]
[EventType "swiss"]
[EventCountry "NET"]
[SourceTitle "playchess.com"]
[Source "ChessBase"]
[SourceQuality "1"]
[TimeControl "5400+30"]

1. d4 {[%emt 0:00:30]} Nf6 {[%emt 0:00:35]} 2. c4 {[%emt 0:00:07]} g6 {[%emt 0:00:04]} 3. Nc3 {[%emt 0:00:02]} d5 {[%emt 0:00:05]} 4. cxd5 {[%emt 0:00:06]} Nxd5 {[%emt 0:00:05]} 5. e4 {[%emt 0:00:08]} Nxc3 {[%emt 0:00:04]} 6. bxc3 {[%emt 0:00:03]} Bg7 {[%emt 0:00:04]} 7. Bc4 {[%emt 0:00:04]} c5 {[%emt 0:00:05]} 8. Ne2 {[%emt 0:00:05]} Nc6 {[%emt 0:00:07]} 9. Be3 {[%emt 0:00:19]} O-O {[%emt 0:00:05]} 10. Rc1 {[%emt 0:00:08]} cxd4 {[%emt 0:00:30]} 11. cxd4 {[%emt 0:00:06]} Qa5+ {[%emt 0:00:05]} 12. Kf1 {[%emt 0:00:07]} Rd8 {[%emt 0:02:05]} 13. h4 {[%emt 0:02:26]} Qa3 {[%emt 0:08:54]} 14. Rc3 {[%emt 0:12:33]} Qd6 {[%emt 0:02:53]} 15. Rd3 {[%emt 0:05:28]} Na5 {[%emt 0:06:55]} 16. Bf4 {[%emt 0:07:52]} Qd7 {[%emt 0:02:20]} 17. Bd5 {[%emt 0:05:25]} e6 {[%emt 0:01:21]} 18. Bb3 {[%emt 0:00:26]} Nxb3 {[%emt 0:01:18]} 19. axb3 {[%emt 0:00:15]} b6 {[%emt 0:01:07]} 20. h5 {[%emt 0:04:53]} Ba6 {[%emt 0:04:15]} 21. Rd2 {[%emt 0:05:51]} Qc6 {[%emt 0:09:05]} 22. e5 {[%emt 0:04:58]} Qe4 {[%emt 0:02:21]} 23. Be3 {[%emt 0:05:31]} Bb7 {[%emt 0:05:11]} 24. Rh2 $15 {[%emt 0:02:19]} Rac8 {[%emt 0:04:55]} 25. Ng3 {[%emt 0:03:27]} Qd5 {[%emt 0:01:13]} 26. hxg6 {[%emt 0:02:09]} fxg6 {[%emt 0:02:43]} 27. Kg1 {[%emt 0:05:38]} Rc3 {[%emt 0:04:16]} 28. Ne2 {[%emt 0:04:17]} Rc7 {[%emt 0:10:21]} 29. Nf4 {[%emt 0:05:33]} Qd7 {[%emt 0:02:00]} 30. Qb1 {[%emt 0:07:30]} Rdc8 {[%emt 0:02:47]} 31. Ra2 {[%emt 0:00:34]} Be4 {[%emt 0:01:35]} 32. Qa1 {[%emt 0:02:21]} Bf5 {[%emt 0:05:43]} 33. f3 {[%emt 0:04:03]} a5 {[%emt 0:02:03]} 34. g4 {[%emt 0:01:10]} Bc2 {[%emt 0:01:00]} 35. Qb2 {[%emt 0:01:26]} Qc6 {[%emt 0:01:46]} 36. Rf2 {[%emt 0:01:41]} Bd1 {[%emt 0:02:07]} 37. Kg2 {[%emt 0:01:01]} g5 {[%emt 0:07:14]} 38. Nh5 {[%emt 0:01:49]} Rf8 {[%emt 0:00:49]} 39. Nf6+ {[%emt 0:02:44]} Bxf6 {[%emt 0:00:27]} 40. exf6 {[%emt 0:00:09]} Qd5 {[%emt 0:01:24]} 41. Ra1 {[%emt 0:03:21]} Bxb3 {[%emt 0:03:41]} 42. Bxg5 {[%emt 0:00:40]} Qxg5 {[%emt 0:01:53]} 43. Qxb3 {[%emt 0:00:10]} Qxf6 {[%emt 0:00:11]} 44. Qxb6 {[%emt 0:00:18]} Rc3 {[%emt 0:00:47]} 45. Raf1 {[%emt 0:00:37]} a4 {[%emt 0:01:33]} 46. Qb4 {[%emt 0:00:25]} Rd3 {[%emt 0:00:31]} 47. Qxa4 {[%emt 0:00:11]} Rxd4 {[%emt 0:00:06]} 48. Qa7 {[%emt 0:01:06]} Rf4 {[%emt 0:00:22]} 49. Rh1 {[%emt 0:00:58]} Qg6 {[%emt 0:00:27]} 50. Qe3 {[%emt 0:00:53]} R8f7 {[%emt 0:02:17]} 51. Re1 {[%emt 0:00:30]} R7f6 {[%emt 0:00:51]} 52. Kg3 {[%emt 0:00:30]} Qg5 {[%emt 0:00:38]} 53. Qe5 {[%emt 0:00:15]} Qg6 {[%emt 0:00:44]} 54. Qh5 {[%emt 0:00:47]} Qxh5 {[%emt 0:00:25]} 55. gxh5 {[%emt 0:00:02]} R4f5 {[%emt 0:00:13]} 56. Kg4 {[%emt 0:00:33]} Kf7 {[%emt 0:00:27]} 57. Rc1 {[%emt 0:00:43]} Rf4+ {[%emt 0:00:29]} 58. Kg3 {[%emt 0:00:15]} Kg7 {[%emt 0:00:41]} 59. Re1 {[%emt 0:00:37]} R4f5 {[%emt 0:00:41]} 60. Kg4 {[%emt 0:00:26]} Kh6 {[%emt 0:00:13]} 61. Rxe6 {[%emt 0:00:32]} Rg5+ {[%emt 0:00:05]} 62. Kh4 {[%emt 0:00:18]} Rxe6 {[%emt 0:00:04]} 63. f4 {[%emt 0:00:24]} Rxh5+ {[%emt 0:00:04]} 0-1

[Event "EYCC Girls U16 2021"]
[Site "Tornelo"]
[Date "2021.10.15"]
[Round "2.12"]
[White "Allahverdiyeva, Ayan"]
[Black "Egger, Stefanie"]
[Result "1-0"]
[ECO "C77"]
[WhiteElo "2051"]
[BlackElo "1627"]
[Annotator "ChessBase"]
[PlyCount "55"]
[EventDate "2021.10.15"]
[EventType "swiss"]
[EventCountry "NET"]
[SourceTitle "playchess.com"]
[Source "ChessBase"]
[SourceQuality "1"]
[TimeControl "5400+30"]

1. e4 {[%emt 0:00:30]} e5 {[%emt 0:00:35]} 2. Nf3 {[%emt 0:00:04]} Nc6 {[%emt 0:00:04]} 3. Bb5 {[%emt 0:00:02]} a6 {[%emt 0:00:02]} 4. Ba4 {[%emt 0:00:03]} Nf6 {[%emt 0:00:13]} 5. d3 {[%emt 0:01:21]} b5 {[%emt 0:00:14]} 6. Bb3 {[%emt 0:00:09]} Bc5 {[%emt 0:00:48]} 7. Be3 {[%emt 0:02:09]} Bb6 {[%emt 0:06:22]} 8. Bxb6 {[%emt 0:00:21]} cxb6 {[%emt 0:00:32]} 9. d4 {[%emt 0:09:01]} exd4 {[%emt 0:07:08]} 10. e5 {[%emt 0:06:42]} Ne4 {[%emt 0:03:33]} 11. Bd5 {[%emt 0:07:03]} Nc5 {[%emt 0:01:40]} 12. Nxd4 {[%emt 0:00:04]} Qc7 {[%emt 0:06:55]} 13. f4 {[%emt 0:04:41]} Bb7 {[%emt 0:08:34]} 14. Nf5 {[%emt 0:02:01]} O-O {[%emt 0:09:03]} 15. O-O {[%emt 0:03:33]} Nd8 {[%emt 0:07:16]} 16. b4 {[%emt 0:04:40]} Bxd5 {[%emt 0:04:40]} 17. Ne7+ {[%emt 0:00:16]} Kh8 {[%emt 0:00:28]} 18. Nxd5 {[%emt 0:00:03]} Qc6 {[%emt 0:02:30]} 19. bxc5 {[%emt 0:00:04]} Qxc5+ {[%emt 0:01:19]} 20. Kh1 {[%emt 0:00:06]} Rc8 {[%emt 0:00:40]} 21. Nbc3 {[%emt 0:00:14]} Ne6 {[%emt 0:01:07]} 22. f5 {[%emt 0:01:04]} Nd4 {[%emt 0:00:36]} 23. f6 {[%emt 0:00:04]} g6 {[%emt 0:01:20]} 24. Qd2 {[%emt 0:00:13]} Nf5 {[%emt 0:07:27]} 25. Rf4 {[%emt 0:01:23]} b4 {[%emt 0:04:37]} 26. Rxb4 {[%emt 0:00:46]} Ne3 {[%emt 0:01:07]} 27. Re4 {[%emt 0:01:12]} Nxd5 {[%emt 0:01:03]} 28. Qh6 {[%emt 0:00:04]} 1-0

[Event "EYCC Girls U16 2021"]
[Site "Tornelo"]
[Date "2021.10.15"]
[Round "3.1"]
[White "Kanyamarala, Trisha"]
[Black "Hertlein, Irena"]
[Result "1/2-1/2"]
[ECO "D34"]
[WhiteElo "2082"]
[BlackElo "1741"]
[Annotator "NA"]
[PlyCount "100"]
[EventDate "2021.10.15"]
[EventType "swiss"]
[EventCountry "NET"]
[SourceTitle "playchess.com"]
[Source "ChessBase"]
[SourceQuality "1"]
[TimeControl "5400+30"]

1. d4 {[%emt 0:00:30]} d5 {[%emt 0:00:37]} 2. c4 {[%emt 0:00:31]} e6 {[%emt 0:00:04]} 3. Nc3 {[%emt 0:00:23]} c5 {[%emt 0:00:05]} 4. cxd5 {[%emt 0:02:26]} exd5 {[%emt 0:00:14]} 5. Nf3 {[%emt 0:00:48]} Nc6 {[%emt 0:00:04]} 6. g3 {[%emt 0:01:30]} Nf6 {[%emt 0:00:07]} 7. Bg2 {[%emt 0:02:55]} Be7 {[%emt 0:00:17]} 8. O-O {[%emt 0:01:41]} O-O {[%emt 0:00:05]} 9. b3 {[%emt 0:06:52]} Re8 {[%emt 0:00:08]} 10. Bb2 {[%emt 0:02:46]} Bg4 {[%emt 0:00:07]} 11. dxc5 {[%emt 0:02:03]} Bxc5 {[%emt 0:00:07]} 12. Rc1 {[%emt 0:02:01]} Bf8 {[%emt 0:00:26]} 13. Nb5 {[%emt 0:03:21]} Rc8 {[%emt 0:01:58]} 14. h3 {[%emt 0:04:59]} Bh5 {[%emt 0:05:56]} 15. Nc3 {[%emt 0:09:07]} Bxf3 {[%emt 0:17:00]} 16. Bxf3 {[%emt 0:01:18]} Qd7 {[%emt 0:00:05]} 17. Kh2 {[%emt 0:07:07]} Rcd8 {[%emt 0:00:52]} 18. Nb5 {[%emt 0:07:02]} Ne4 {[%emt 0:06:38]} 19. Nd4 {[%emt 0:01:53]} Ne5 {[%emt 0:04:11]} 20. Bg2 {[%emt 0:01:26]} h5 {[%emt 0:03:36]} 21. Nf3 {[%emt 0:09:13]} Nxf3+ {[%emt 0:02:53]} 22. Bxf3 {[%emt 0:02:38]} h4 {[%emt 0:02:36]} 23. g4 {[%emt 0:01:59]} Bd6+ {[%emt 0:08:45]} 24. Kg2 {[%emt 0:03:02]} Bb8 {[%emt 0:01:20]} 25. Rh1 {[%emt 0:00:47]} Ng5 {[%emt 0:09:12]} 26. Qd3 {[%emt 0:02:38]} d4 {[%emt 0:05:35]} 27. Rcd1 {[%emt 0:01:59]} Ne6 {[%emt 0:01:48]} 28. Kf1 {[%emt 0:00:58]} Qc7 {[%emt 0:05:19]} 29. Bc1 {[%emt 0:10:04]} Rc8 {[%emt 0:07:18]} 30. Bd2 {[%emt 0:03:48]} Red8 {[%emt 0:04:22]} 31. Kg2 {[%emt 0:04:17]} Nc5 {[%emt 0:09:07]} 32. Qf5 {[%emt 0:01:12]} Re8 {[%emt 0:02:39]} 33. Qh5 {[%emt 0:00:57]} d3 {[%emt 0:01:23]} 34. e3 {[%emt 0:00:32]} Ne4 {[%emt 0:00:52]} 35. Qxh4 {[%emt 0:02:06]} Qe5 {[%emt 0:01:26]} 36. Bxe4 {[%emt 0:00:45]} Qxe4+ {[%emt 0:00:04]} 37. f3 {[%emt 0:00:17]} Qe5 {[%emt 0:00:48]} 38. Qf2 {[%emt 0:00:55]} Rc2 {[%emt 0:00:05]} 39. h4 {[%emt 0:00:30]} Bd6 {[%emt 0:00:35]} 40. Kh3 {[%emt 0:00:38]} Bb4 {[%emt 0:01:04]} 41. Rh2 {[%emt 0:00:16]} Rec8 {[%emt 0:00:29]} 42. Qe1 {[%emt 0:00:43]} Qb2 {[%emt 0:00:35]} 43. Rf2 {[%emt 0:00:30]} Bxd2 {[%emt 0:00:15]} 44. Rfxd2 {[%emt 0:00:18]} Rxd2 {[%emt 0:00:03]} 45. Rxd2 {[%emt 0:00:31]} Rc2 {[%emt 0:00:04]} 46. Rxd3 {[%emt 0:00:33]} Rh2+ {[%emt 0:00:09]} 47. Kg3 {[%emt 0:00:05]} Rg2+ {[%emt 0:00:43]} 48. Kh3 {[%emt 0:00:26]} Rh2+ {[%emt 0:00:09]} 49. Kg3 {[%emt 0:00:05]} Rg2+ {[%emt 0:00:46]} 50. Kh3 {[%emt 0:00:04]} Rh2+ {[%emt 0:00:04]} 1/2-1/2

[Event "EYCC Girls U16 2021"]
[Site "Tornelo"]
[Date "2021.10.15"]
[Round "3.2"]
[White "Shpakivskaya, Alina"]
[Black "Sulyok, Eszter"]
[Result "1/2-1/2"]
[ECO "B40"]
[WhiteElo "1875"]
[BlackElo "1913"]
[Annotator "NA"]
[PlyCount "105"]
[EventDate "2021.10.15"]
[EventType "swiss"]
[EventCountry "NET"]
[SourceTitle "playchess.com"]
[Source "ChessBase"]
[SourceQuality "1"]
[TimeControl "5400+30"]

1. e4 {[%emt 0:00:30]} c5 {[%emt 0:00:34]} 2. Nf3 {[%emt 0:00:05]} e6 {[%emt 0:00:04]} 3. g3 {[%emt 0:00:05]} Nc6 {[%emt 0:00:18]} 4. Bg2 {[%emt 0:00:06]} Nf6 {[%emt 0:01:49]} 5. Qe2 {[%emt 0:00:08]} Qc7 {[%emt 0:01:08]} 6. O-O {[%emt 0:00:24]} d6 {[%emt 0:00:20]} 7. Rd1 {[%emt 0:01:24]} Be7 {[%emt 0:03:07]} 8. d4 {[%emt 0:01:30]} cxd4 {[%emt 0:00:06]} 9. Nxd4 {[%emt 0:00:12]} O-O {[%emt 0:03:15]} 10. Nb5 {[%emt 0:03:23]} Qb8 {[%emt 0:00:24]} 11. Bf4 {[%emt 0:01:11]} e5 {[%emt 0:00:26]} 12. Bg5 {[%emt 0:02:07]} a6 {[%emt 0:06:21]} 13. N5c3 {[%emt 0:09:32]} Nd4 {[%emt 0:01:21]} 14. Qd3 {[%emt 0:00:31]} Bg4 {[%emt 0:03:57]} 15. f3 {[%emt 0:01:47]} Be6 {[%emt 0:02:41]} 16. Be3 {[%emt 0:02:31]} Nc6 {[%emt 0:01:12]} 17. Na4 {[%emt 0:00:53]} Nd7 {[%emt 0:10:30]} 18. Nb6 {[%emt 0:04:07]} Nxb6 {[%emt 0:00:08]} 19. Bxb6 {[%emt 0:00:06]} Qc8 {[%emt 0:00:13]} 20. Nc3 {[%emt 0:00:51]} Kh8 {[%emt 0:08:51]} 21. a3 {[%emt 0:06:33]} f5 {[%emt 0:06:02]} 22. Nd5 {[%emt 0:02:21]} Bxd5 {[%emt 0:07:45]} 23. Qxd5 {[%emt 0:01:13]} fxe4 {[%emt 0:00:13]} 24. fxe4 {[%emt 0:01:36]} Qg4 {[%emt 0:01:38]} 25. Qd3 {[%emt 0:03:14]} Bd8 {[%emt 0:04:39]} 26. Be3 {[%emt 0:00:58]} Bf6 {[%emt 0:01:31]} 27. Rf1 {[%emt 0:04:42]} Qe6 {[%emt 0:02:29]} 28. Rad1 {[%emt 0:01:36]} Be7 {[%emt 0:07:49]} 29. Bb6 {[%emt 0:04:21]} Rac8 {[%emt 0:01:49]} 30. Rxf8+ {[%emt 0:04:49]} Rxf8 {[%emt 0:01:02]} 31. Qe2 {[%emt 0:17:20]} Nb8 {[%emt 0:04:28]} 32. Rf1 {[%emt 0:02:25]} Bf6 {[%emt 0:00:41]} 33. Bf3 {[%emt 0:01:08]} Qa2 {[%emt 0:01:54]} 34. Qd3 {[%emt 0:02:59]} Qe6 {[%emt 0:05:17]} 35. Qd1 {[%emt 0:02:42]} Be7 {[%emt 0:01:10]} 36. Rf2 {[%emt 0:03:23]} d5 {[%emt 0:00:25]} 37. Ba7 {[%emt 0:00:29]} d4 {[%emt 0:01:06]} 38. Bg4 {[%emt 0:02:58]} Qd6 {[%emt 0:00:22]} 39. Rxf8+ {[%emt 0:01:17]} Bxf8 {[%emt 0:00:05]} 40. Bxb8 {[%emt 0:00:06]} Qxb8 {[%emt 0:00:05]} 41. Qf3 {[%emt 0:00:30]} Qe8 {[%emt 0:00:44]} 42. Qf5 {[%emt 0:01:05]} b6 {[%emt 0:00:27]} 43. Be2 {[%emt 0:00:41]} Bc5 {[%emt 0:00:44]} 44. Kg2 {[%emt 0:00:54]} a5 {[%emt 0:00:05]} 45. Bh5 {[%emt 0:02:32]} Qe7 {[%emt 0:01:41]} 46. Bg4 {[%emt 0:02:08]} g6 {[%emt 0:00:53]} 47. Qc8+ {[%emt 0:00:34]} Kg7 {[%emt 0:00:20]} 48. a4 {[%emt 0:00:34]} Qf8 {[%emt 0:01:35]} 49. Qxf8+ {[%emt 0:00:47]} Kxf8 {[%emt 0:00:09]} 50. b3 {[%emt 0:00:05]} Ke7 {[%emt 0:00:04]} 51. Be2 {[%emt 0:00:17]} Kf6 {[%emt 0:00:22]} 52. Kf3 {[%emt 0:00:10]} Bb4 {[%emt 0:00:11]} 53. Bc4 {[%emt 0:00:30]} 1/2-1/2

[Event "EYCC Girls U16 2021"]
[Site "Tornelo"]
[Date "2021.10.15"]
[Round "3.3"]
[White "Follana Albelda, Lucia"]
[Black "Carevic, Milica"]
[Result "1-0"]
[ECO "B90"]
[WhiteElo "1904"]
[BlackElo "1675"]
[Annotator "NA"]
[PlyCount "93"]
[EventDate "2021.10.15"]
[EventType "swiss"]
[EventCountry "NET"]
[SourceTitle "playchess.com"]
[Source "ChessBase"]
[SourceQuality "1"]
[TimeControl "5400+30"]

1. e4 {[%emt 0:00:30]} c5 {[%emt 0:00:38]} 2. Nf3 {[%emt 0:00:09]} d6 {[%emt 0:00:13]} 3. d4 {[%emt 0:00:09]} cxd4 {[%emt 0:00:04]} 4. Nxd4 {[%emt 0:00:08]} Nf6 {[%emt 0:00:05]} 5. Nc3 {[%emt 0:00:08]} a6 {[%emt 0:00:05]} 6. f3 {[%emt 0:00:15]} e5 {[%emt 0:00:19]} 7. Nb3 {[%emt 0:00:09]} Be6 {[%emt 0:00:19]} 8. Nd5 {[%emt 0:06:43]} Bxd5 {[%emt 0:08:27]} 9. exd5 {[%emt 0:00:19]} Be7 {[%emt 0:00:56]} 10. Be3 {[%emt 0:01:05]} Nbd7 {[%emt 0:00:18]} 11. c4 {[%emt 0:02:13]} Qc7 {[%emt 0:02:22]} 12. Bd3 {[%emt 0:04:19]} Rc8 {[%emt 0:07:49]} 13. Rc1 {[%emt 0:02:50]} O-O {[%emt 0:03:43]} 14. O-O {[%emt 0:01:34]} Rfe8 {[%emt 0:03:29]} 15. Qd2 {[%emt 0:04:50]} Nc5 {[%emt 0:04:17]} 16. Bf5 {[%emt 0:05:39]} Nxb3 {[%emt 0:05:36]} 17. axb3 {[%emt 0:04:59]} Rb8 {[%emt 0:05:49]} 18. b4 {[%emt 0:03:11]} b6 {[%emt 0:04:14]} 19. Rfd1 {[%emt 0:03:41]} g6 {[%emt 0:10:31]} 20. Bh3 {[%emt 0:01:46]} Red8 {[%emt 0:01:30]} 21. b3 {[%emt 0:10:19]} Nh5 {[%emt 0:07:52]} 22. Ra1 {[%emt 0:07:28]} Qb7 {[%emt 0:05:24]} 23. g3 {[%emt 0:02:13]} Bf6 {[%emt 0:05:04]} 24. Ra2 {[%emt 0:02:38]} Ra8 {[%emt 0:01:08]} 25. Bf1 {[%emt 0:05:16]} Ng7 {[%emt 0:03:23]} 26. Bd3 {[%emt 0:02:21]} Ne8 {[%emt 0:04:45]} 27. Be4 {[%emt 0:03:26]} Bg7 {[%emt 0:09:22]} 28. c5 {[%emt 0:00:49]} bxc5 {[%emt 0:00:51]} 29. bxc5 {[%emt 0:01:49]} f5 {[%emt 0:00:30]} 30. c6 {[%emt 0:00:13]} Qc7 {[%emt 0:00:34]} 31. Bd3 {[%emt 0:00:17]} a5 {[%emt 0:00:19]} 32. Rb1 {[%emt 0:02:27]} Nf6 {[%emt 0:01:16]} 33. Bc4 {[%emt 0:02:22]} e4 {[%emt 0:02:56]} 34. Be2 {[%emt 0:04:59]} Rdb8 {[%emt 0:01:13]} 35. b4 {[%emt 0:00:51]} axb4 {[%emt 0:00:05]} 36. Rxa8 {[%emt 0:00:07]} Rxa8 {[%emt 0:00:03]} 37. Rxb4 {[%emt 0:02:37]} exf3 {[%emt 0:00:50]} 38. Bxf3 {[%emt 0:00:11]} Ne8 {[%emt 0:00:25]} 39. Rb7 {[%emt 0:00:24]} Qc8 {[%emt 0:00:27]} 40. Bd4 {[%emt 0:01:11]} Bf8 {[%emt 0:01:45]} 41. Bb2 {[%emt 0:01:58]} Bg7 {[%emt 0:00:57]} 42. Bxg7 {[%emt 0:00:55]} Nxg7 {[%emt 0:00:03]} 43. Qb2 {[%emt 0:00:34]} Ne8 {[%emt 0:00:08]} 44. Qb6 {[%emt 0:01:35]} Ra1+ {[%emt 0:00:41]} 45. Kf2 {[%emt 0:00:08]} Ra2+ {[%emt 0:00:23]} 46. Be2 {[%emt 0:01:23]} Ra8 {[%emt 0:00:44]} 47. c7 {[%emt 0:01:06]} 1-0

[Event "EYCC Girls U16 2021"]
[Site "Tornelo"]
[Date "2021.10.15"]
[Round "3.4"]
[White "Kara, Gulce Nehir"]
[Black "Tsotsonava, Elene"]
[Result "0-1"]
[ECO "B50"]
[WhiteElo "1766"]
[BlackElo "1887"]
[Annotator "NA"]
[PlyCount "56"]
[EventDate "2021.10.15"]
[EventType "swiss"]
[EventCountry "NET"]
[SourceTitle "playchess.com"]
[Source "ChessBase"]
[SourceQuality "1"]
[TimeControl "5400+30"]

1. e4 {[%emt 0:00:30]} c5 {[%emt 0:00:37]} 2. Nf3 {[%emt 0:00:04]} e6 {[%emt 0:00:07]} 3. b3 {[%emt 0:00:05]} Nc6 {[%emt 0:00:18]} 4. Bb2 {[%emt 0:00:05]} d6 {[%emt 0:00:26]} 5. d4 {[%emt 0:00:04]} cxd4 {[%emt 0:05:39]} 6. Nxd4 {[%emt 0:00:05]} Nf6 {[%emt 0:01:43]} 7. Nxc6 {[%emt 0:00:09]} bxc6 {[%emt 0:00:19]} 8. Bd3 {[%emt 0:00:06]} Be7 {[%emt 0:02:03]} 9. O-O {[%emt 0:04:50]} O-O {[%emt 0:00:34]} 10. e5 {[%emt 0:05:35]} dxe5 {[%emt 0:07:24]} 11. Bxe5 {[%emt 0:01:41]} Bb7 {[%emt 0:02:43]} 12. Qe2 {[%emt 0:08:52]} Nd7 {[%emt 0:08:21]} 13. Bb2 {[%emt 0:07:49]} Bf6 {[%emt 0:01:08]} 14. Bxf6 {[%emt 0:10:30]} Qxf6 {[%emt 0:00:10]} 15. Nd2 {[%emt 0:00:19]} c5 {[%emt 0:06:10]} 16. Ne4 {[%emt 0:08:47]} Bxe4 {[%emt 0:00:49]} 17. Qxe4 {[%emt 0:02:17]} g6 {[%emt 0:00:25]} 18. Bb5 {[%emt 0:00:37]} Nb6 {[%emt 0:01:28]} 19. c4 {[%emt 0:03:38]} Rad8 {[%emt 0:08:07]} 20. Qc6 {[%emt 0:07:02]} Qf5 {[%emt 0:06:26]} 21. a4 {[%emt 0:03:29]} Rd3 {[%emt 0:06:30]} 22. Rab1 {[%emt 0:03:26]} Nd7 {[%emt 0:10:14]} 23. Rfe1 {[%emt 0:03:51]} Nf6 {[%emt 0:06:17]} 24. f3 {[%emt 0:08:30]} Rfd8 {[%emt 0:03:50]} 25. Qc7 {[%emt 0:01:45]} Rd2 {[%emt 0:02:26]} 26. Rbc1 {[%emt 0:05:18]} R8d6 {[%emt 0:03:25]} 27. h4 {[%emt 0:08:07]} Qf4 {[%emt 0:04:36]} 28. Qxc5 {[%emt 0:02:04]} Qg3 {[%emt 0:01:28]} 0-1

[Event "EYCC Girls U16 2021"]
[Site "Tornelo"]
[Date "2021.10.15"]
[Round "3.5"]
[White "Bashylina, Luisa"]
[Black "Striskova, Lucia"]
[Result "1-0"]
[ECO "A89"]
[WhiteElo "2127"]
[BlackElo "1923"]
[Annotator "NA"]
[PlyCount "61"]
[EventDate "2021.10.15"]
[EventType "swiss"]
[EventCountry "NET"]
[SourceTitle "playchess.com"]
[Source "ChessBase"]
[SourceQuality "1"]
[TimeControl "5400+30"]

1. d4 {[%emt 0:00:30]} f5 {[%emt 0:01:11]} 2. c4 {[%emt 0:00:07]} Nf6 {[%emt 0:00:09]} 3. g3 {[%emt 0:00:06]} d6 {[%emt 0:00:46]} 4. Bg2 {[%emt 0:00:07]} g6 {[%emt 0:00:07]} 5. Nf3 {[%emt 0:00:04]} Bg7 {[%emt 0:00:08]} 6. O-O {[%emt 0:00:02]} O-O {[%emt 0:00:17]} 7. Nc3 {[%emt 0:00:08]} Nc6 {[%emt 0:00:42]} 8. d5 {[%emt 0:05:02]} Ne5 {[%emt 0:01:34]} 9. Nxe5 {[%emt 0:00:49]} dxe5 {[%emt 0:00:07]} 10. e4 {[%emt 0:01:32]} f4 {[%emt 0:01:38]} 11. gxf4 {[%emt 0:04:54]} exf4 {[%emt 0:00:40]} 12. f3 {[%emt 0:06:20]} Nd7 {[%emt 0:09:17]} 13. Ne2 {[%emt 0:05:26]} g5 {[%emt 0:00:47]} 14. Nd4 {[%emt 0:02:29]} Ne5 {[%emt 0:00:29]} 15. c5 {[%emt 0:01:15]} Rf6 {[%emt 0:06:56]} 16. Qb3 {[%emt 0:13:33]} Kh8 {[%emt 0:00:16]} 17. Bd2 {[%emt 0:02:09]} Rh6 {[%emt 0:06:48]} 18. Nf5 {[%emt 0:07:04]} Bxf5 {[%emt 0:02:18]} 19. exf5 {[%emt 0:00:04]} b6 {[%emt 0:05:54]} 20. Bc3 {[%emt 0:03:41]} Nd7 {[%emt 0:04:39]} 21. Bxg7+ {[%emt 0:01:20]} Kxg7 {[%emt 0:00:11]} 22. cxb6 {[%emt 0:02:15]} cxb6 {[%emt 0:01:10]} 23. Rfe1 {[%emt 0:00:49]} Rf6 {[%emt 0:06:13]} 24. Rac1 {[%emt 0:03:24]} Nc5 {[%emt 0:03:05]} 25. Qc4 {[%emt 0:00:29]} a5 {[%emt 0:04:54]} 26. Re5 {[%emt 0:02:38]} Qd6 {[%emt 0:03:47]} 27. Rce1 {[%emt 0:00:32]} Ra7 {[%emt 0:00:58]} 28. Qd4 {[%emt 0:04:17]} Kf7 {[%emt 0:02:23]} 29. Bf1 {[%emt 0:01:37]} Rh6 {[%emt 0:03:26]} 30. Bc4 {[%emt 0:02:11]} Rc7 {[%emt 0:02:20]} 31. Re6 {[%emt 0:02:57]} 1-0

[Event "EYCC Girls U16 2021"]
[Site "Tornelo"]
[Date "2021.10.15"]
[Round "3.6"]
[White "Pipiras, Filipa Fortuna"]
[Black "Allahverdiyeva, Ayan"]
[Result "0-1"]
[ECO "E63"]
[WhiteElo "1995"]
[BlackElo "2051"]
[Annotator "NA"]
[PlyCount "94"]
[EventDate "2021.10.15"]
[EventType "swiss"]
[EventCountry "NET"]
[SourceTitle "playchess.com"]
[Source "ChessBase"]
[SourceQuality "1"]
[TimeControl "5400+30"]

1. d4 {[%emt 0:00:30]} Nf6 {[%emt 0:00:41]} 2. c4 {[%emt 0:00:30]} g6 {[%emt 0:00:04]} 3. g3 {[%emt 0:00:09]} Bg7 {[%emt 0:00:03]} 4. Bg2 {[%emt 0:00:07]} O-O {[%emt 0:00:02]} 5. Nf3 {[%emt 0:00:13]} d6 {[%emt 0:00:11]} 6. O-O {[%emt 0:00:20]} Nc6 {[%emt 0:00:08]} 7. Nc3 {[%emt 0:00:53]} a6 {[%emt 0:00:04]} 8. b3 {[%emt 0:01:11]} Rb8 {[%emt 0:00:09]} 9. d5 {[%emt 0:00:31]} Na5 {[%emt 0:03:23]} 10. Bg5 {[%emt 0:01:37]} b5 {[%emt 0:00:33]} 11. cxb5 {[%emt 0:02:38]} axb5 {[%emt 0:00:03]} 12. b4 {[%emt 0:00:06]} Nc4 {[%emt 0:00:06]} 13. Qb3 {[%emt 0:06:08]} h6 {[%emt 0:05:09]} 14. Bxf6 {[%emt 0:04:10]} Bxf6 {[%emt 0:00:18]} 15. a4 {[%emt 0:01:12]} e6 {[%emt 0:14:11]} 16. Rad1 {[%emt 0:06:16]} Nb6 {[%emt 0:23:35]} 17. Nxb5 {[%emt 0:20:13]} exd5 {[%emt 0:03:56]} 18. Nfd4 {[%emt 0:05:19]} Bd7 {[%emt 0:01:29]} 19. a5 {[%emt 0:17:02]} Nc8 {[%emt 0:00:57]} 20. Qxd5 {[%emt 0:06:48]} c5 {[%emt 0:03:21]} 21. Nc6 {[%emt 0:03:11]} Ne7 {[%emt 0:03:22]} 22. Nxe7+ {[%emt 0:00:46]} Qxe7 {[%emt 0:00:19]} 23. Nxd6 {[%emt 0:01:03]} cxb4 {[%emt 0:00:35]} 24. a6 {[%emt 0:01:31]} Ba4 {[%emt 0:04:51]} 25. Ne4 {[%emt 0:05:02]} Bxd1 {[%emt 0:04:03]} 26. a7 {[%emt 0:00:51]} Rbd8 {[%emt 0:06:07]} 27. Nxf6+ {[%emt 0:02:16]} Qxf6 {[%emt 0:00:05]} 28. a8=Q {[%emt 0:03:20]} Rxa8 {[%emt 0:00:21]} 29. Qxd1 {[%emt 0:00:10]} Rab8 {[%emt 0:01:31]} 30. Bd5 {[%emt 0:01:21]} Qc3 {[%emt 0:01:17]} 31. Qb1 {[%emt 0:00:29]} Rb6 {[%emt 0:03:32]} 32. Rc1 {[%emt 0:01:16]} Qd2 {[%emt 0:00:05]} 33. Bb3 {[%emt 0:01:44]} Qxe2 {[%emt 0:00:36]} 34. Re1 {[%emt 0:01:11]} Qf3 {[%emt 0:02:33]} 35. Re3 {[%emt 0:00:47]} Qf6 {[%emt 0:01:02]} 36. Qe4 {[%emt 0:00:44]} Qf5 {[%emt 0:03:48]} 37. Qd4 {[%emt 0:02:56]} Rf6 {[%emt 0:00:05]} 38. Rd3 {[%emt 0:00:22]} Re8 {[%emt 0:00:53]} 39. Rd1 {[%emt 0:01:18]} Re2 {[%emt 0:00:32]} 40. Rf1 {[%emt 0:00:09]} Qe5 {[%emt 0:02:41]} 41. Qxb4 {[%emt 0:01:26]} Qb2 {[%emt 0:00:42]} 42. Qb7 {[%emt 0:02:20]} Rexf2 {[%emt 0:01:32]} 43. Re1 {[%emt 0:01:09]} Re2 {[%emt 0:03:04]} 44. Rd1 {[%emt 0:00:32]} Re1+ {[%emt 0:00:15]} 45. Rxe1 {[%emt 0:00:21]} Qf2+ {[%emt 0:00:03]} 46. Kh1 {[%emt 0:00:07]} Qxe1+ {[%emt 0:00:01]} 47. Kg2 {[%emt 0:00:05]} Qf1# {[%emt 0:00:02]} 0-1